[Event "Titled Tuesday Blitz August 24 2021"]
[White "Viani Antonio Dcunha"]
[Black "Demchenko, Anton"]
[WhiteFideId "5027330"]
[BlackFideId "4160258"]
[WhiteElo "2366"]
[BlackElo "2583"]
[Result "0-1"]
[Round "05"]
[TimeControl "180+1"]
[Date "2021.08.24"]
[WhiteClock "0:00:04"]
[BlackClock "0:00:10"]

1. d4 {[%clk 0:02:49]}  d5 {[%clk 0:02:59]} 2. Nf3 {[%clk 0:02:48]}  Nf6 {[%clk 0:02:57]} 3. Bf4 {[%clk 0:02:48]}  e6 {[%clk 0:02:55]} 4. e3 {[%clk 0:02:47]}  c5 {[%clk 0:02:55]} 5. c3 {[%clk 0:02:47]}  Nc6 {[%clk 0:02:55]} 6. Nbd2 {[%clk 0:02:44]}  Nh5 {[%clk 0:02:55]} 7. Bg5 {[%clk 0:02:42]}  f6 {[%clk 0:02:56]} 8. Bh4 {[%clk 0:02:41]}  g6 {[%clk 0:02:57]} 9. Be2 {[%clk 0:02:36]}  cxd4 {[%clk 0:02:48]} 10. cxd4 {[%clk 0:02:20]}  Be7 {[%clk 0:02:44]} 11. O-O {[%clk 0:02:13]}  O-O {[%clk 0:02:23]} 12. h3 {[%clk 0:02:10]}  Bd7 {[%clk 0:02:11]} 13. Rc1 {[%clk 0:02:06]}  Rc8 {[%clk 0:02:10]} 14. Nb3 {[%clk 0:02:06]}  Qb6 {[%clk 0:01:39]} 15. Nc5 {[%clk 0:01:45]}  Rfd8 {[%clk 0:01:27]} 16. a3 {[%clk 0:01:24]}  a5 {[%clk 0:01:11]} 17. Qd2 {[%clk 0:00:59]}  Ng7 {[%clk 0:01:06]} 18. Bg3 {[%clk 0:00:53]}  Be8 {[%clk 0:01:00]} 19. Rc2 {[%clk 0:00:45]}  Bf7 {[%clk 0:00:57]} 20. Rfc1 {[%clk 0:00:43]}  Nf5 {[%clk 0:00:56]} 21. Bh2 {[%clk 0:00:38]}  Nd6 {[%clk 0:00:56]} 22. Ne1 {[%clk 0:00:26]}  Ne4 {[%clk 0:00:50]} 23. Nxe4 {[%clk 0:00:23]}  dxe4 {[%clk 0:00:50]} 24. Bc4 {[%clk 0:00:20]}  Rd7 {[%clk 0:00:45]} 25. Rc3 {[%clk 0:00:17]}  Rcd8 {[%clk 0:00:44]} 26. Qe2 {[%clk 0:00:16]}  Bd6 {[%clk 0:00:30]} 27. Bxd6 {[%clk 0:00:14]}  Rxd6 {[%clk 0:00:31]} 28. Nc2 {[%clk 0:00:14]}  Kg7 {[%clk 0:00:24]} 29. Na1 {[%clk 0:00:13]}  a4 {[%clk 0:00:21]} 30. Nc2 {[%clk 0:00:13]}  Qa5 {[%clk 0:00:19]} 31. Na1 {[%clk 0:00:08]}  Be8 {[%clk 0:00:18]} 32. Ba2 {[%clk 0:00:07]}  Ne7 {[%clk 0:00:14]} 33. Qc4 {[%clk 0:00:06]}  Nd5 {[%clk 0:00:13]} 34. Qc5 {[%clk 0:00:04]}  Qxc5 {[%clk 0:00:13]} 35. Rxc5 {[%clk 0:00:05]}  Rb6 {[%clk 0:00:12]} 36. Rb1 {[%clk 0:00:02]}  Bc6 {[%clk 0:00:11]} 37. Nc2 {[%clk 0:00:02]}  g5 {[%clk 0:00:11]} 38. Bxd5 {[%clk 0:00:02]}  Bxd5 {[%clk 0:00:11]} 39. Nb4 {[%clk 0:00:03]}  Kg6 {[%clk 0:00:07]} 40. Rbc1 {[%clk 0:00:03]}  h5 {[%clk 0:00:08]} 41. Rc8 {[%clk 0:00:03]}  Rdd6 {[%clk 0:00:08]} 42. Kf1 {[%clk 0:00:02]}  h4 {[%clk 0:00:08]} 43. Ke1 {[%clk 0:00:03]}  Rxb4 {[%clk 0:00:07]} 44. Kd2 {[%clk 0:00:04]}  Rdb6 {[%clk 0:00:08]} 45. axb4 {[%clk 0:00:04]}  Rxb4 {[%clk 0:00:09]} 46. Kc2 {[%clk 0:00:04]}  Kf5 {[%clk 0:00:09]} 47. Kb1 {[%clk 0:00:04]}  a3 {[%clk 0:00:09]} 48. R1c2 {[%clk 0:00:04]}  Rb3 {[%clk 0:00:05]} 49. R8c3 {[%clk 0:00:03]}  a2+ {[%clk 0:00:03]} 50. Ka1 {[%clk 0:00:03]}  Rb6 {[%clk 0:00:04]} 51. b3 {[%clk 0:00:03]}  Rxb3 {[%clk 0:00:03]} 52. Rxb3 {[%clk 0:00:03]}  Bxb3 {[%clk 0:00:04]} 53. Rc5+ {[%clk 0:00:03]}  Bd5 {[%clk 0:00:04]} 54. Rb5 {[%clk 0:00:03]}  g4 {[%clk 0:00:04]} 55. hxg4+ {[%clk 0:00:02]}  Kxg4 {[%clk 0:00:05]} 56. Ra5 {[%clk 0:00:02]}  h3 {[%clk 0:00:05]} 57. gxh3+ {[%clk 0:00:03]}  Kxh3 {[%clk 0:00:06]} 58. Rb5 {[%clk 0:00:01]}  Kg2 {[%clk 0:00:06]} 59. Rb2 {[%clk 0:00:02]}  Kf3 {[%clk 0:00:07]} 60. Rc2 {[%clk 0:00:02]}  f5 {[%clk 0:00:07]} 61. Kb2 {[%clk 0:00:03]}  b5 {[%clk 0:00:07]} 62. Rd2 {[%clk 0:00:03]}  b4 {[%clk 0:00:07]} 63. Rc2 {[%clk 0:00:03]}  b3 {[%clk 0:00:06]} 64. Rd2 {[%clk 0:00:04]}  Kg4 {[%clk 0:00:06]} 65. Re2 {[%clk 0:00:04]}  Kh3 {[%clk 0:00:06]} 66. Rd2 {[%clk 0:00:05]}  Kh4 {[%clk 0:00:05]} 67. Ka1 {[%clk 0:00:05]}  Kg4 {[%clk 0:00:06]} 68. Kb2 {[%clk 0:00:06]}  Kf3 {[%clk 0:00:07]} 69. Ka1 {[%clk 0:00:06]}  Kg2 {[%clk 0:00:07]} 70. Kb2 {[%clk 0:00:06]}  Kf1 {[%clk 0:00:08]} 71. Ka1 {[%clk 0:00:05]}  Ke1 {[%clk 0:00:08]} 72. Rb2 {[%clk 0:00:05]}  Kd1 {[%clk 0:00:09]} 73. f4 {[%clk 0:00:04]}  exf3 {[%clk 0:00:09]} 74. Rh2 {[%clk 0:00:04]}  Ke1 {[%clk 0:00:10]} 75. Rh1+ {[%clk 0:00:04]}  Ke2 {[%clk 0:00:10]} 0-1


[Site "https://www.chess.com"]

[Event "Titled Tuesday Blitz August 24 2021"]
[White "Vlassov, Nikolai"]
[Black "Khodzhamkuliev, Bahadur"]
[WhiteFideId "4103360"]
[BlackFideId "24135046"]
[WhiteElo "2407"]
[BlackElo "2130"]
[Result "1/2-1/2"]
[Round "05"]
[TimeControl "180+1"]
[Date "2021.08.24"]
[WhiteClock "0:02:15"]
[BlackClock "0:01:28"]

1. e4 {[%clk 0:03:00]}  c5 {[%clk 0:02:34]} 2. c3 {[%clk 0:03:00]}  d6 {[%clk 0:02:34]} 3. d4 {[%clk 0:03:00]}  Nf6 {[%clk 0:02:33]} 4. Bd3 {[%clk 0:02:58]}  Nc6 {[%clk 0:02:32]} 5. d5 {[%clk 0:02:58]}  Ne5 {[%clk 0:02:28]} 6. c4 {[%clk 0:02:56]}  g6 {[%clk 0:02:27]} 7. Nc3 {[%clk 0:02:55]}  a6 {[%clk 0:02:26]} 8. f4 {[%clk 0:02:54]}  Nxd3+ {[%clk 0:02:26]} 9. Qxd3 {[%clk 0:02:55]}  Bg7 {[%clk 0:02:26]} 10. Nf3 {[%clk 0:02:55]}  O-O {[%clk 0:02:26]} 11. O-O {[%clk 0:02:55]}  b5 {[%clk 0:02:27]} 12. cxb5 {[%clk 0:02:46]}  axb5 {[%clk 0:02:28]} 13. Nxb5 {[%clk 0:02:43]}  Ba6 {[%clk 0:02:16]} 14. Re1 {[%clk 0:02:42]}  c4 {[%clk 0:02:00]} 15. Qxc4 {[%clk 0:02:42]}  Qb6+ {[%clk 0:01:59]} 16. Be3 {[%clk 0:02:21]}  Qxb5 {[%clk 0:01:57]} 17. Qxb5 {[%clk 0:02:20]}  Bxb5 {[%clk 0:01:58]} 18. Bd4 {[%clk 0:02:20]}  Rfb8 {[%clk 0:01:49]} 19. b3 {[%clk 0:02:19]}  Bd3 {[%clk 0:01:45]} 20. Nd2 {[%clk 0:02:15]}  Rc8 {[%clk 0:01:28]} 1/2-1/2


[Site "https://www.chess.com"]

[Event "Titled Tuesday Blitz August 24 2021"]
[White "Wieczorek, Oskar"]
[Black "Dobrowolski, Piotr"]
[WhiteFideId "1133950"]
[BlackFideId "1106236"]
[WhiteElo "2258"]
[BlackElo "2296"]
[Result "1-0"]
[Round "05"]
[TimeControl "180+1"]
[Date "2021.08.24"]
[WhiteClock "0:01:14"]
[BlackClock "0:00:22"]

1. e4 {[%clk 0:03:00]}  c5 {[%clk 0:02:59]} 2. Nf3 {[%clk 0:03:01]}  Nc6 {[%clk 0:02:59]} 3. b4 {[%clk 0:03:00]}  cxb4 {[%clk 0:02:58]} 4. d4 {[%clk 0:03:01]}  e6 {[%clk 0:02:58]} 5. d5 {[%clk 0:02:57]}  Qf6 {[%clk 0:02:52]} 6. c3 {[%clk 0:02:57]}  bxc3 {[%clk 0:02:37]} 7. dxc6 {[%clk 0:02:56]}  c2 {[%clk 0:02:37]} 8. Qxc2 {[%clk 0:02:57]}  Qxa1 {[%clk 0:02:35]} 9. e5 {[%clk 0:02:58]}  bxc6 {[%clk 0:02:21]} 10. Bc4 {[%clk 0:02:22]}  Rb8 {[%clk 0:01:53]} 11. Nbd2 {[%clk 0:02:21]}  Ba3 {[%clk 0:01:43]} 12. O-O {[%clk 0:02:05]}  Bxc1 {[%clk 0:01:43]} 13. Rxc1 {[%clk 0:01:56]}  Qb2 {[%clk 0:01:42]} 14. Qd1 {[%clk 0:01:57]}  Qb6 {[%clk 0:01:29]} 15. Ne4 {[%clk 0:01:51]}  Ne7 {[%clk 0:01:22]} 16. Nd6+ {[%clk 0:01:51]}  Kf8 {[%clk 0:01:23]} 17. Ng5 {[%clk 0:01:40]}  f6 {[%clk 0:01:02]} 18. Qh5 {[%clk 0:01:28]}  Ng6 {[%clk 0:00:47]} 19. Nxh7+ {[%clk 0:01:25]}  Rxh7 {[%clk 0:00:41]} 20. Qxg6 {[%clk 0:01:16]}  Ke7 {[%clk 0:00:22]} 21. Qe8# {[%clk 0:01:14]} 1-0


[Site "https://www.chess.com"]

[Event "Titled Tuesday Blitz August 24 2021"]
[White "Yanchenko, Roman"]
[Black "Machidon, Cristi"]
[WhiteFideId "4137329"]
[BlackFideId "13904590"]
[WhiteElo "2514"]
[BlackElo "2312"]
[Result "1-0"]
[Round "05"]
[TimeControl "180+1"]
[Date "2021.08.24"]
[WhiteClock "0:01:25"]
[BlackClock "0:01:06"]

1. d4 {[%clk 0:02:24]}  Nf6 {[%clk 0:02:53]} 2. c4 {[%clk 0:02:24]}  e6 {[%clk 0:02:53]} 3. Nf3 {[%clk 0:02:24]}  Bb4+ {[%clk 0:02:53]} 4. Bd2 {[%clk 0:02:24]}  Qe7 {[%clk 0:02:53]} 5. e3 {[%clk 0:02:24]}  O-O {[%clk 0:02:53]} 6. Bd3 {[%clk 0:02:24]}  d5 {[%clk 0:02:52]} 7. O-O {[%clk 0:02:23]}  Bxd2 {[%clk 0:02:50]} 8. Qxd2 {[%clk 0:02:23]}  b6 {[%clk 0:02:49]} 9. cxd5 {[%clk 0:02:23]}  exd5 {[%clk 0:02:48]} 10. Ne5 {[%clk 0:02:22]}  Nbd7 {[%clk 0:02:44]} 11. f4 {[%clk 0:02:20]}  c5 {[%clk 0:02:44]} 12. Nc3 {[%clk 0:02:19]}  Bb7 {[%clk 0:02:43]} 13. Qe2 {[%clk 0:02:17]}  a6 {[%clk 0:02:40]} 14. Rac1 {[%clk 0:02:16]}  b5 {[%clk 0:02:39]} 15. Bf5 {[%clk 0:02:15]}  Nb6 {[%clk 0:02:21]} 16. b3 {[%clk 0:01:59]}  Rad8 {[%clk 0:02:08]} 17. Bb1 {[%clk 0:01:37]}  Rfe8 {[%clk 0:02:01]} 18. Qf3 {[%clk 0:01:33]}  b4 {[%clk 0:01:42]} 19. dxc5 {[%clk 0:01:29]}  Qxc5 {[%clk 0:01:06]} 20. Na4 {[%clk 0:01:26]}  Qa5 {[%clk 0:01:06]} 21. Rc5 {[%clk 0:01:25]} 1-0


[Site "https://www.chess.com"]

[Event "Titled Tuesday Blitz August 24 2021"]
[White "Yoo, Christopher Woojin"]
[Black "Skliarov, Viktor"]
[WhiteFideId "30909694"]
[BlackFideId "14106736"]
[WhiteElo "2105"]
[BlackElo "2281"]
[Result "1/2-1/2"]
[Round "05"]
[TimeControl "180+1"]
[Date "2021.08.24"]
[WhiteClock "0:00:03"]
[BlackClock "0:00:09"]

1. e4 {[%clk 0:02:43]}  c5 {[%clk 0:02:59]} 2. Nf3 {[%clk 0:02:42]}  Nc6 {[%clk 0:02:59]} 3. Nc3 {[%clk 0:02:41]}  Nf6 {[%clk 0:02:59]} 4. Bb5 {[%clk 0:02:38]}  Nd4 {[%clk 0:02:59]} 5. e5 {[%clk 0:02:38]}  Nxb5 {[%clk 0:02:59]} 6. Nxb5 {[%clk 0:02:39]}  Nd5 {[%clk 0:03:00]} 7. Ng5 {[%clk 0:02:38]}  f6 {[%clk 0:02:59]} 8. Qf3 {[%clk 0:02:07]}  Nb4 {[%clk 0:02:38]} 9. exf6 {[%clk 0:02:06]}  exf6 {[%clk 0:02:37]} 10. Qe4+ {[%clk 0:02:02]}  Qe7 {[%clk 0:02:37]} 11. Nd6+ {[%clk 0:01:48]}  Kd8 {[%clk 0:02:36]} 12. Ngf7+ {[%clk 0:01:48]}  Kc7 {[%clk 0:02:36]} 13. O-O {[%clk 0:01:10]}  Qxe4 {[%clk 0:02:12]} 14. Nxe4 {[%clk 0:01:11]}  d5 {[%clk 0:02:12]} 15. Nxh8 {[%clk 0:01:04]}  dxe4 {[%clk 0:02:12]} 16. d3 {[%clk 0:01:03]}  Nxc2 {[%clk 0:02:01]} 17. Bf4+ {[%clk 0:01:01]}  Kc6 {[%clk 0:01:59]} 18. Rad1 {[%clk 0:00:48]}  Be6 {[%clk 0:01:45]} 19. dxe4 {[%clk 0:00:38]}  Be7 {[%clk 0:01:45]} 20. Rd2 {[%clk 0:00:38]}  Nb4 {[%clk 0:01:32]} 21. a3 {[%clk 0:00:36]}  Na6 {[%clk 0:01:32]} 22. Rfd1 {[%clk 0:00:33]}  Rxh8 {[%clk 0:01:27]} 23. Rd6+ {[%clk 0:00:32]}  Bxd6 {[%clk 0:01:22]} 24. Rxd6+ {[%clk 0:00:33]}  Kb5 {[%clk 0:01:03]} 25. Rxe6 {[%clk 0:00:33]}  Rd8 {[%clk 0:01:04]} 26. g4 {[%clk 0:00:28]}  Rd7 {[%clk 0:00:55]} 27. b3 {[%clk 0:00:21]}  c4 {[%clk 0:00:53]} 28. bxc4+ {[%clk 0:00:20]}  Kxc4 {[%clk 0:00:53]} 29. Re8 {[%clk 0:00:04]}  Kb3 {[%clk 0:00:30]} 30. Be3 {[%clk 0:00:03]}  b6 {[%clk 0:00:28]} 31. f4 {[%clk 0:00:03]}  Kxa3 {[%clk 0:00:27]} 32. Bxb6 {[%clk 0:00:02]}  axb6 {[%clk 0:00:24]} 33. Ra8 {[%clk 0:00:02]}  b5 {[%clk 0:00:24]} 34. Rxa6+ {[%clk 0:00:03]}  Kb3 {[%clk 0:00:24]} 35. g5 {[%clk 0:00:01]}  fxg5 {[%clk 0:00:23]} 36. fxg5 {[%clk 0:00:02]}  Re7 {[%clk 0:00:22]} 37. Kf2 {[%clk 0:00:02]}  Rxe4 {[%clk 0:00:21]} 38. Ra7 {[%clk 0:00:02]}  g6 {[%clk 0:00:16]} 39. Rxh7 {[%clk 0:00:03]}  Re5 {[%clk 0:00:16]} 40. h4 {[%clk 0:00:03]}  b4 {[%clk 0:00:17]} 41. Rh6 {[%clk 0:00:03]}  Kc4 {[%clk 0:00:10]} 42. Rxg6 {[%clk 0:00:03]}  b3 {[%clk 0:00:10]} 43. Rc6+ {[%clk 0:00:03]}  Rc5 {[%clk 0:00:10]} 44. Rb6 {[%clk 0:00:02]}  Rb5 {[%clk 0:00:10]} 45. Rc6+ {[%clk 0:00:02]}  Kd5 {[%clk 0:00:10]} 46. Rc1 {[%clk 0:00:02]}  b2 {[%clk 0:00:10]} 47. Rb1 {[%clk 0:00:03]}  Ke4 {[%clk 0:00:11]} 48. Kg3 {[%clk 0:00:03]}  Kf5 {[%clk 0:00:11]} 49. Rf1+ {[%clk 0:00:02]}  Kg6 {[%clk 0:00:11]} 50. Rb1 {[%clk 0:00:01]}  Rb3+ {[%clk 0:00:12]} 51. Kg4 {[%clk 0:00:01]}  Rb4+ {[%clk 0:00:12]} 52. Kg3 {[%clk 0:00:02]}  Kh5 {[%clk 0:00:13]} 53. Kf3 {[%clk 0:00:02]}  Kxh4 {[%clk 0:00:11]} 54. g6 {[%clk 0:00:01]}  Kh5 {[%clk 0:00:10]} 55. g7 {[%clk 0:00:02]}  Rb8 {[%clk 0:00:09]} 56. Rxb2 {[%clk 0:00:02]}  Rg8 {[%clk 0:00:09]} 57. Kf4 {[%clk 0:00:01]}  Rxg7 {[%clk 0:00:09]} 58. Rh2+ {[%clk 0:00:02]}  Kg6 {[%clk 0:00:08]} 59. Rg2+ {[%clk 0:00:02]}  Kf6 {[%clk 0:00:09]} 60. Rxg7 {[%clk 0:00:03]}  Kxg7 {[%clk 0:00:09]} 1/2-1/2


[Site "https://www.chess.com"]

[Event "Titled Tuesday Blitz August 24 2021"]
[White "Zeltsan, Joseph"]
[Black "Indjic, Aleksandar"]
[WhiteFideId "30932980"]
[BlackFideId "911925"]
[WhiteElo "2195"]
[BlackElo "2643"]
[Result "0-1"]
[Round "05"]
[TimeControl "180+1"]
[Date "2021.08.24"]
[WhiteClock "0:00:11"]
[BlackClock "0:01:24"]

1. e4 {[%clk 0:03:00]}  d6 {[%clk 0:02:56]} 2. d4 {[%clk 0:03:00]}  Nf6 {[%clk 0:02:57]} 3. Nc3 {[%clk 0:03:01]}  e5 {[%clk 0:02:56]} 4. Nf3 {[%clk 0:03:00]}  Nbd7 {[%clk 0:02:55]} 5. Bc4 {[%clk 0:02:58]}  Be7 {[%clk 0:02:55]} 6. O-O {[%clk 0:02:57]}  h6 {[%clk 0:02:55]} 7. Re1 {[%clk 0:02:57]}  c6 {[%clk 0:02:53]} 8. a4 {[%clk 0:02:56]}  g5 {[%clk 0:02:54]} 9. Be3 {[%clk 0:02:43]}  Qc7 {[%clk 0:02:53]} 10. Qe2 {[%clk 0:02:42]}  Nf8 {[%clk 0:02:53]} 11. Bb3 {[%clk 0:02:34]}  Ng6 {[%clk 0:02:52]} 12. Qc4 {[%clk 0:02:31]}  Rf8 {[%clk 0:02:20]} 13. Rad1 {[%clk 0:02:16]}  Be6 {[%clk 0:02:16]} 14. d5 {[%clk 0:02:12]}  Bd7 {[%clk 0:02:15]} 15. dxc6 {[%clk 0:01:54]}  bxc6 {[%clk 0:02:13]} 16. Bxg5 {[%clk 0:00:49]}  hxg5 {[%clk 0:02:10]} 17. Nxg5 {[%clk 0:00:50]}  Rb8 {[%clk 0:01:42]} 18. Nb5 {[%clk 0:00:40]}  Qa5 {[%clk 0:01:41]} 19. Nxd6+ {[%clk 0:00:21]}  Bxd6 {[%clk 0:01:39]} 20. Nxf7 {[%clk 0:00:21]}  Be7 {[%clk 0:01:29]} 21. Re3 {[%clk 0:00:15]}  Rb4 {[%clk 0:01:26]} 22. Qd3 {[%clk 0:00:12]}  Rd4 {[%clk 0:01:26]} 23. Qe2 {[%clk 0:00:11]}  Rxd1+ {[%clk 0:01:25]} 24. Qxd1 {[%clk 0:00:12]}  Rxf7 {[%clk 0:01:24]} 25. Bxf7+ {[%clk 0:00:12]}  Kxf7 {[%clk 0:01:25]} 26. h3 {[%clk 0:00:12]}  Be6 {[%clk 0:01:24]} 27. g4 {[%clk 0:00:11]}  Nf4 {[%clk 0:01:24]} 0-1


[Site "https://www.chess.com"]

[Event "Titled Tuesday Blitz August 24 2021"]
[White "Zhao, Erick"]
[Black "Pichot, Alan"]
[WhiteFideId "30946930"]
[BlackFideId "110973"]
[WhiteElo "2581"]
[BlackElo "2622"]
[Result "0-1"]
[Round "05"]
[TimeControl "180+1"]
[Date "2021.08.24"]
[WhiteClock "0:00:23"]
[BlackClock "0:01:14"]

1. e4 {[%clk 0:02:58]}  c5 {[%clk 0:02:52]} 2. Nf3 {[%clk 0:02:56]}  e6 {[%clk 0:02:49]} 3. d4 {[%clk 0:02:55]}  cxd4 {[%clk 0:02:49]} 4. Nxd4 {[%clk 0:02:56]}  Nc6 {[%clk 0:02:46]} 5. Nc3 {[%clk 0:02:52]}  Qc7 {[%clk 0:02:44]} 6. Be3 {[%clk 0:02:49]}  a6 {[%clk 0:02:42]} 7. Qf3 {[%clk 0:02:46]}  Ne5 {[%clk 0:02:40]} 8. Qg3 {[%clk 0:02:28]}  h5 {[%clk 0:02:39]} 9. h4 {[%clk 0:02:19]}  Nf6 {[%clk 0:02:36]} 10. O-O-O {[%clk 0:02:16]}  b5 {[%clk 0:02:25]} 11. f4 {[%clk 0:02:05]}  Neg4 {[%clk 0:02:20]} 12. Bg1 {[%clk 0:02:02]}  b4 {[%clk 0:02:18]} 13. Nd5 {[%clk 0:01:33]}  exd5 {[%clk 0:02:16]} 14. exd5 {[%clk 0:01:33]}  Bb7 {[%clk 0:02:13]} 15. Qe1+ {[%clk 0:01:15]}  Kd8 {[%clk 0:02:04]} 16. d6 {[%clk 0:01:06]}  Bxd6 {[%clk 0:02:01]} 17. Nf5 {[%clk 0:01:04]}  Bxf4+ {[%clk 0:01:59]} 18. Kb1 {[%clk 0:01:02]}  Be4 {[%clk 0:01:51]} 19. Nd4 {[%clk 0:00:49]}  Re8 {[%clk 0:01:28]} 20. Qxb4 {[%clk 0:00:47]}  Nd5 {[%clk 0:01:28]} 21. Qa4 {[%clk 0:00:35]}  Nge3 {[%clk 0:01:20]} 22. Rc1 {[%clk 0:00:23]}  Rb8 {[%clk 0:01:14]} 0-1


[Site "https://www.chess.com"]

[Event "Titled Tuesday Blitz August 24 2021"]
[White "Zhou, Jianchao"]
[Black "Ivanisevic, Ivan"]
[WhiteFideId "8603537"]
[BlackFideId "912417"]
[WhiteElo "2462"]
[BlackElo "2499"]
[Result "1-0"]
[Round "05"]
[TimeControl "180+1"]
[Date "2021.08.24"]
[WhiteClock "0:00:04"]
[BlackClock "0:00:01"]

1. d4 {[%clk 0:02:38]}  Nf6 {[%clk 0:02:59]} 2. c4 {[%clk 0:02:37]}  e6 {[%clk 0:02:59]} 3. Nf3 {[%clk 0:02:37]}  d5 {[%clk 0:03:00]} 4. Nc3 {[%clk 0:02:37]}  Nbd7 {[%clk 0:03:00]} 5. cxd5 {[%clk 0:02:37]}  exd5 {[%clk 0:02:59]} 6. Bf4 {[%clk 0:02:37]}  c6 {[%clk 0:02:59]} 7. e3 {[%clk 0:02:37]}  Nh5 {[%clk 0:02:58]} 8. Bg5 {[%clk 0:02:37]}  Be7 {[%clk 0:02:56]} 9. Bxe7 {[%clk 0:02:37]}  Qxe7 {[%clk 0:02:57]} 10. Be2 {[%clk 0:02:37]}  g6 {[%clk 0:02:48]} 11. O-O {[%clk 0:02:36]}  O-O {[%clk 0:02:49]} 12. Rb1 {[%clk 0:02:31]}  a5 {[%clk 0:02:48]} 13. a3 {[%clk 0:02:31]}  Nb6 {[%clk 0:02:24]} 14. Bd3 {[%clk 0:02:00]}  Bg4 {[%clk 0:02:20]} 15. h3 {[%clk 0:02:00]}  Bxf3 {[%clk 0:02:19]} 16. Qxf3 {[%clk 0:02:00]}  f5 {[%clk 0:02:10]} 17. Rfc1 {[%clk 0:01:55]}  a4 {[%clk 0:01:56]} 18. Bc2 {[%clk 0:01:52]}  Ra5 {[%clk 0:01:55]} 19. Qd1 {[%clk 0:01:39]}  Rfa8 {[%clk 0:01:54]} 20. Bd3 {[%clk 0:01:33]}  Nc8 {[%clk 0:01:42]} 21. Bxf5 {[%clk 0:01:32]}  Nd6 {[%clk 0:01:37]} 22. Bd3 {[%clk 0:01:28]}  Nf6 {[%clk 0:01:26]} 23. Ne2 {[%clk 0:01:21]}  Rf8 {[%clk 0:01:22]} 24. Qe1 {[%clk 0:01:14]}  Raa8 {[%clk 0:01:21]} 25. Nf4 {[%clk 0:01:09]}  g5 {[%clk 0:01:15]} 26. Ne2 {[%clk 0:01:08]}  g4 {[%clk 0:01:14]} 27. Nf4 {[%clk 0:01:03]}  gxh3 {[%clk 0:01:12]} 28. Nxh3 {[%clk 0:01:04]}  Kh8 {[%clk 0:01:11]} 29. Qe2 {[%clk 0:01:00]}  Rg8 {[%clk 0:01:11]} 30. g3 {[%clk 0:00:50]}  Nde4 {[%clk 0:01:06]} 31. Kg2 {[%clk 0:00:49]}  Ng4 {[%clk 0:01:06]} 32. Bxe4 {[%clk 0:00:44]}  Qxe4+ {[%clk 0:01:05]} 33. Qf3 {[%clk 0:00:44]}  Qxf3+ {[%clk 0:00:33]} 34. Kxf3 {[%clk 0:00:45]}  Nf6 {[%clk 0:00:31]} 35. Nf4 {[%clk 0:00:44]}  Rae8 {[%clk 0:00:29]} 36. Rh1 {[%clk 0:00:43]}  Rg5 {[%clk 0:00:28]} 37. Rh4 {[%clk 0:00:39]}  Kg7 {[%clk 0:00:26]} 38. Rbh1 {[%clk 0:00:39]}  Kf7 {[%clk 0:00:26]} 39. Nd3 {[%clk 0:00:36]}  Kg7 {[%clk 0:00:25]} 40. Ke2 {[%clk 0:00:34]}  h5 {[%clk 0:00:20]} 41. Nf4 {[%clk 0:00:33]}  Kh6 {[%clk 0:00:20]} 42. Nxh5 {[%clk 0:00:31]}  Rxh5 {[%clk 0:00:19]} 43. Rxh5+ {[%clk 0:00:31]}  Nxh5 {[%clk 0:00:20]} 44. g4 {[%clk 0:00:32]}  Kg5 {[%clk 0:00:20]} 45. gxh5 {[%clk 0:00:30]}  Rh8 {[%clk 0:00:20]} 46. h6 {[%clk 0:00:30]}  Rh7 {[%clk 0:00:19]} 47. f3 {[%clk 0:00:29]}  b6 {[%clk 0:00:13]} 48. e4 {[%clk 0:00:22]}  Kf4 {[%clk 0:00:09]} 49. exd5 {[%clk 0:00:20]}  cxd5 {[%clk 0:00:09]} 50. Rh3 {[%clk 0:00:18]}  Kg5 {[%clk 0:00:07]} 51. Ke3 {[%clk 0:00:14]}  Re7+ {[%clk 0:00:06]} 52. Kd3 {[%clk 0:00:14]}  Rh7 {[%clk 0:00:07]} 53. Kc3 {[%clk 0:00:13]}  Kf4 {[%clk 0:00:08]} 54. Rh5 {[%clk 0:00:09]}  Rc7+ {[%clk 0:00:05]} 55. Kb4 {[%clk 0:00:09]}  Rh7 {[%clk 0:00:06]} 56. Kxa4 {[%clk 0:00:07]}  Kxf3 {[%clk 0:00:06]} 57. Rxd5 {[%clk 0:00:08]}  Rxh6 {[%clk 0:00:06]} 58. Kb5 {[%clk 0:00:07]}  Ke4 {[%clk 0:00:06]} 59. Rd8 {[%clk 0:00:07]}  Kd3 {[%clk 0:00:05]} 60. b4 {[%clk 0:00:07]}  Kc3 {[%clk 0:00:05]} 61. d5 {[%clk 0:00:08]}  Kb3 {[%clk 0:00:05]} 62. a4 {[%clk 0:00:08]}  Rh4 {[%clk 0:00:02]} 63. Kxb6 {[%clk 0:00:08]}  Rxb4+ {[%clk 0:00:02]} 64. Kc5 {[%clk 0:00:08]}  Rc4+ {[%clk 0:00:02]} 65. Kb6 {[%clk 0:00:05]}  Rxa4 {[%clk 0:00:03]} 66. d6 {[%clk 0:00:05]}  Rd4 {[%clk 0:00:01]} 67. Kc5 {[%clk 0:00:04]} 1-0


[Site "https://www.chess.com"]

[Event "Titled Tuesday Blitz August 24 2021"]
[White "Zubov, Alexander"]
[Black "Nilsen, Tobias Lang"]
[WhiteFideId "14109409"]
[BlackFideId "1521624"]
[WhiteElo "2740"]
[BlackElo "1975"]
[Result "1-0"]
[Round "05"]
[TimeControl "180+1"]
[Date "2021.08.24"]
[WhiteClock "0:00:21"]
[BlackClock "0:00:02"]

1. d4 {[%clk 0:03:00]}  Nf6 {[%clk 0:02:44]} 2. c4 {[%clk 0:03:00]}  c5 {[%clk 0:02:43]} 3. d5 {[%clk 0:03:00]}  e6 {[%clk 0:02:43]} 4. Nc3 {[%clk 0:03:00]}  exd5 {[%clk 0:02:43]} 5. cxd5 {[%clk 0:03:01]}  d6 {[%clk 0:02:44]} 6. Nf3 {[%clk 0:03:02]}  g6 {[%clk 0:02:44]} 7. Nd2 {[%clk 0:03:02]}  Bg7 {[%clk 0:02:44]} 8. Nc4 {[%clk 0:03:02]}  O-O {[%clk 0:02:44]} 9. Bf4 {[%clk 0:03:02]}  Ne8 {[%clk 0:02:44]} 10. Qd2 {[%clk 0:03:01]}  b6 {[%clk 0:02:44]} 11. a4 {[%clk 0:03:01]}  Ba6 {[%clk 0:02:31]} 12. Nb5 {[%clk 0:03:01]}  Bxb5 {[%clk 0:02:10]} 13. axb5 {[%clk 0:03:00]}  a6 {[%clk 0:02:05]} 14. e3 {[%clk 0:02:29]}  Nd7 {[%clk 0:01:39]} 15. bxa6 {[%clk 0:02:10]}  Ne5 {[%clk 0:01:21]} 16. Bxe5 {[%clk 0:01:58]}  dxe5 {[%clk 0:01:21]} 17. Be2 {[%clk 0:01:57]}  Nd6 {[%clk 0:01:20]} 18. O-O {[%clk 0:01:43]}  f5 {[%clk 0:01:19]} 19. Nxd6 {[%clk 0:01:41]}  Qxd6 {[%clk 0:01:20]} 20. e4 {[%clk 0:01:35]}  fxe4 {[%clk 0:01:06]} 21. Bb5 {[%clk 0:01:35]}  Rf4 {[%clk 0:01:03]} 22. Bc6 {[%clk 0:01:34]}  Ra7 {[%clk 0:01:03]} 23. Bb7 {[%clk 0:01:32]}  Bh6 {[%clk 0:01:02]} 24. g3 {[%clk 0:01:23]}  Rh4 {[%clk 0:00:57]} 25. Qe2 {[%clk 0:01:23]}  Rh5 {[%clk 0:00:49]} 26. Qxe4 {[%clk 0:01:16]}  Bg7 {[%clk 0:00:46]} 27. Rac1 {[%clk 0:01:12]}  Bh6 {[%clk 0:00:41]} 28. Rc2 {[%clk 0:01:11]}  Bg7 {[%clk 0:00:40]} 29. b4 {[%clk 0:01:11]}  Rf5 {[%clk 0:00:32]} 30. Rfc1 {[%clk 0:01:09]}  Bh6 {[%clk 0:00:21]} 31. bxc5 {[%clk 0:01:08]}  bxc5 {[%clk 0:00:21]} 32. Re1 {[%clk 0:01:01]}  Bg7 {[%clk 0:00:19]} 33. Qe3 {[%clk 0:00:59]}  Rxa6 {[%clk 0:00:16]} 34. Bxa6 {[%clk 0:00:58]}  Qxa6 {[%clk 0:00:17]} 35. Qxc5 {[%clk 0:00:55]}  Bf8 {[%clk 0:00:17]} 36. Qc6 {[%clk 0:00:54]}  Qa5 {[%clk 0:00:16]} 37. Rf1 {[%clk 0:00:46]}  e4 {[%clk 0:00:15]} 38. Qe6+ {[%clk 0:00:46]}  Kg7 {[%clk 0:00:15]} 39. Rd1 {[%clk 0:00:39]}  Qa4 {[%clk 0:00:12]} 40. Rcd2 {[%clk 0:00:36]}  Bb4 {[%clk 0:00:11]} 41. Qxe4 {[%clk 0:00:33]}  Rxf2 {[%clk 0:00:07]} 42. Kxf2 {[%clk 0:00:24]}  Bc5+ {[%clk 0:00:07]} 43. Kf3 {[%clk 0:00:25]}  Qb3+ {[%clk 0:00:06]} 44. Kg2 {[%clk 0:00:25]}  h5 {[%clk 0:00:05]} 45. d6 {[%clk 0:00:23]}  Kh6 {[%clk 0:00:03]} 46. d7 {[%clk 0:00:23]}  Bb6 {[%clk 0:00:04]} 47. Rd6 {[%clk 0:00:22]}  Bc7 {[%clk 0:00:02]} 48. Qxg6# {[%clk 0:00:21]} 1-0


[Site "https://www.chess.com"]